Workbook

Sheet MATRIZ DE INDICADORES
D2: MACROPROCESO ESTRATÉGICO | S2: CÓDIGO: ESGr027
D3: PROCESO GESTIÓN SISTEMAS INTEGRADOS - CALIDAD | S3: VERSIÓN: 8
D4: MATRIZ DE MEDICIÓN Y SEGUIMIENTO A LOS PROCESOS DE GESTIÓN | S4: VIGENCIA: 2023-07-28
S5: PÁGINA: 1 de 6
Q7: FECHA DE ACTUALIZACIÓN: | S7: AÑO | T7: MES | U7: DÍA
S8: 2023 | T8: 6 | U8: 16
B10: ALINEACIÓN DE LOS INDICADORES CON LOS DOCUMENTOS ESTRATÉGICOS Y LOS OBJETIVOS DE CALIDAD
B12: PROCESO GESTIÓN | C12: FRENTES DEL PLAN ESTRATÉGICO | D12: LINEAMIENTOS DE LA POLÍTICA DE CALIDAD | E12: OBJETIVOS DE CALIDAD | F12: OBJETIVO GENERAL DEL PROCESO | G12: OBJETIVOS ESPECÍFICOS | H12: NOMBRE INDICADOR | I12: FÓRMULA | J12: TIPO DE INDICADOR | K12: SEGUIMIENTO MEDICIÓN | L12: META | M12: ACTIVIDAD | N12: RESPONSABLE DE LA ACTIVIDAD | O12: ¿QUÉ RECURSOS SE REQUIEREN? | P12: FECHA EJECUCIÓN DE ACTIVIDADES | Q12: EVIDENCIA | R12: ¿CUÁNDO FINALIZARÁ? | S12: RESULTADO | T12: NIVEL OBTENIDO | U12: ACCESO
B13: Dirección Financiera | C13: Frente Estratégico VI: Organización Universitaria Digital. | D13: Se legitima como una organización social del conocimiento y el aprendizaje que se compromete con el pensamiento basado en riesgos y el mejoramiento continuo mediante buenas prácticas administrativas y académicas en búsqueda de la acreditación de programas y la acreditación institucional, enfocándose en el bienestar de la comunidad universitaria como factor constitutivo de la vida y la libertad y la consolidación de una organización universitaria inteligente con alma y corazón. | E13: Mejorar continuamente el desempeño de los procesos a través de la implementación de buenas prácticas institucionales y de la aplicación de los mecanismos dispuestos por la Universidad de Cundinamarca, para la constitución de una organización universitaria inteligente con alma y corazón. | F13: Administrar eficientemente los recursos financieros desde la perspectiva de la autonomía universitaria para el cumplimiento de los objetivos misionales. | G13: Generar el pago del 95% de total de las obligaciones a terceros radicadas, dentro de los tiempos establecidos en la normatividad interna institucional durante la vigencia 2023. | H13: Oportunidad en pagos OPS - APA - OCS- OCC | I13: Número de cuentas (APA - OPS -OCS -OCC) pagadas dentro de los 5 días hábiles * 100 | J13: EFICIENCIA | K13: Trimestral | L13: 0.95 | M13: 1. Realizar consolidado de información de cuentas. 2. generar reporte del indicador | N13: Area Financiera | O13: Recursos Humanos (Profesionales asignados), Tecnológicos: software y hardware , Correo electrónico, Herramientas de ofimática, PC, Material de oficina | P13: Diario | Q13: Data Pago a Terceros de Integradoc | R13: VIGENCIA 2023 | S13: 0.77 | T13: ACEPTABLE | U13: AFI-1
G14: Consolidar la recuperación del 90% del total de la cartera relacionada con el fraccionamiento de matrícula académica de cada vigencia. | H14: Recuperación de cartera | I14: Valor recuperado en el periodo académico *100/Valor prestado por fraccionamiento de matricula durante el periodo académico | J14: EFICIENCIA | K14: Semestral | L14: 0.9 | M14: 1. Bases de datos de los beneficiadas. 2. Discriminado de cuotas según el tipo de fraccionamiento. 3. Realizar cruce de la información con la oficina de admisiones y tesorería. 4. Reportar la medición. 5. Se comienza proceso de cobro coactivo. | N14: Area Financiera | O14: Recursos Humanos (Profesionales asignados), Tecnológicos: software y hardware, Correo electrónico, Herramientas de ofimática, PC, Material de oficina | P14: Semestral (Periodo Academico) | Q14: Informe de Fraccionamiento | R14: VIGENCIA 2023 | S14: 1 | T14: EXCELENTE | U14: AFI-2
G15: Asegurar la recuperación del 100% de los saldos solicitados ante la DIAN, de devolución de IVA bimensual de la vigencia 2023, apropiados en la ejecución de proyectos de inversión. | H15: Recuperación de IVA | I15: Total IVA recuperado/Total IVA cobrado*100 | J15: EFICIENCIA | K15: Bimestral | L15: 1 | M15: 1.Realizar consolidado de facturas pagadas. 2.Presentar solicitud de devolución del IVA a l DIAN. 3. Entregar soportes anexos a la solicitud según los requerimientos de la DIAN. 4.Reportar el indicador | N15: Area Financiera | O15: Recursos Humanos (Profesionales asignados), Tecnológicos: software y hardware, Correo electrónico, Herramientas de ofimática, PC, Material de oficina | P15: Bimestral | Q15: Resolucion de la DIAN | R15: VIGENCIA 2023 | S15: 1 | T15: EXCELENTE | U15: AFI-3
G16: Generar el pago del 95% de total de las obligaciones a terceros radicadas, dentro de los tiempos establecidos en la normatividad interna institucional durante la vigencia 2023. | H16: Tasa de cuentas para causación devueltas | I16: Numero de cuentas radicadas devueltas * 100/Total de cuentas radicadas para causación | J16: EFICACIA | K16: Trimestral | L16: 0.2 | M16: 1.Realizar consolidado de cuentas para causar. 2.Verificar requisitos de pagos. 3. Si cumple, se causa la cuenta. 4. No cumple se devuelve la cuenta al supervisor del contrato. 5.Reportar el indicador | N16: Area Financiera | O16: Recursos Humanos, Tecnológicos: software y hardware, Correo electrónico, Herramientas de ofimática, PC, Material de oficina | P16: Diario y consolidado trimestral | Q16: Informe de Cuentas devueltas | R16: VIGENCIA 2023 | S16: 0.27 | T16: BUENO | U16: AFI-4
B88: Diagonal 18 No. 20-29 Fusagasugá – Cundinamarca Teléfono (601) 8281483 Línea Gratuita 018000180414 www.ucundinamarca.edu.co E-mail: info@ucundinamarca.edu.co NIT: 890.680.062-2
B89: Documento controlado por el Sistema de Gestión de la Calidad Asegúrese que corresponde a la última versión consultando el Portal Institucional
C98: LINEAMIENTOS DE LA POLÍTICA DE CALIDAD | D98: OBJETIVOS DE CALIDAD | E98: ALINEACIÓN DE LOS INDICADORES CON LOS DOCUMENTOS ESTRATÉGICOS Y LOS OBJETIVOS DE CALIDAD
C99: LINEAMIENTOS DE LA POLÍTICA DE SEGURIDAD Y SALUD EN EL TRABAJO | D99: OBJETIVOS DE SEGURIDAD Y SALUD EN EL TRABAJO | E99: ALINEACIÓN DE LOS INDICADORES CON LOS DOCUMENTOS ESTRATÉGICOS Y LOS OBJETIVOS DE SEGURIDAD Y SALUD EN EL TRABAJO
C100: LINEAMIENTOS DE LA POLÍTICA DE AMBIENTAL | D100: OBJETIVOS DE AMBIENTAL | E100: ALINEACIÓN DE LOS INDICADORES CON LOS DOCUMENTOS ESTRATÉGICOS Y LOS OBJETIVOS DE AMBIENTAL
C101: LINEAMIENTOS DE LA POLÍTICA DE SEGURIDAD DE LA INFORMACIÓN | D101: OBJETIVOS DE SEGURIDAD DE LA INFORMACIÓN | E101: ALINEACIÓN DE LOS INDICADORES CON LOS DOCUMENTOS ESTRATÉGICOS Y LOS OBJETIVOS DE SEGURIDAD DE LA INFORMACIÓN
C102: LINEAMIENTOS DE LA POLÍTICA DE SEGURIDAD DE ANTISOBORNO | D102: OBJETIVOS DE SEGURIDAD DE ANTISOBORNO | E102: ALINEACIÓN DE LOS INDICADORES CON LOS DOCUMENTOS ESTRATÉGICOS Y LOS OBJETIVOS DE SEGURIDAD DE ANTISOBORNO
C103: LINEAMIENTOS DE LA POLÍTICA DE LA CONCILIACIÓN DE LA VIDA PERSONAL, FAMILIAR Y LABORAL | D103: OBJETIVOS DE LA CONCILIACIÓN DE LA VIDA PERSONAL, FAMILIAR Y LABORAL | E103: ALINEACIÓN DE LOS INDICADORES CON LOS DOCUMENTOS ESTRATÉGICOS Y LOS OBJETIVOS DE LA CONCILIACIÓN DE LA VIDA PERSONAL, FAMILIAR Y LABORAL

Sheet AFI-1
B2: REGRESAR
E5: MACROPROCESO ESTRATÉGICO | M5: CÓDIGO: ESGr027
E6: PROCESO GESTIÓN SISTEMAS INTEGRADOS - CALIDAD | M6: VERSIÓN: 8
E7: MATRIZ DE MEDICIÓN Y SEGUIMIENTO A LOS PROCESOS DE GESTIÓN | M7: VIGENCIA: 2023-07-28
M8: PÁGINA: 2 de 6
C10: FICHA DE INDICADOR
C12: MACROPROCESO | E12: Apoyo | I12: NOMBRE DEL INDICADOR | K12: Oportunidad en pagos OPS - APA - OCS - OCC
C13: PROCESO GESTIÓN | E13: Financiera
C14: RESPONSABLE DE MEDICIÓN | E14: Director(a) Financiera
C16: 1. COMPORTAMIENTO DE INDICADOR
C17: CLASIFICACIÓN DE LA MEDICIÓN | E17: 1 | H17: TIPO DE INDICADOR | J17: Eficiencia | L17: META | N17: 0.95
C18: FORMULA | E18: NUMERADOR | G18: Número de cuentas (APA - OPS -OCS -OCC) pagadas dentro de los 5 días hábiles * 100 | L18: UNIDAD DE MEDIDA | N18: Porcentaje
E19: DENOMINADOR | G19: Total de cuentas pagadas en el periodo
C20: TENDENCIA | E20: Positiva | H20: NIVEL DE SEGREGACIÓN * | J20: Otros | L20: ESCALA
L21: Deficiente | M21: Aceptable | N21: Bueno | O21: Excelente
L22: 0% - 65,9% | M22: 66% - 84,9% | N22: 85% - 95% | O22: 95.1% - 100%
C23: ORIGEN DE DATOS NUMERADOR | E23: Data Integradoc | H23: FRECUENCIA DE LA MEDICIÓN | J23: TRIMESTRAL | L23: FRECUENCIA DE RESULTADO | N23: TRIMESTRAL
C24: ORIGEN DE DATOS DENOMINADOR | E24: Data Integradoc
C26: RESULTADOS
J27: ANÁLISIS DE DATOS
J28: TRIMESTRE I: Es de resaltar que de un total de 119 cuentas entre tipologia OPS, APA, OCS, OCC fueron canceladas en sus tiempos establecidos 115 cuentas logrando asi el 97% en el indicador de oportunidad de pago. TRIMESTRE II: Para este trimestre se evidencia que se pagaron un total de746 cuentas de tipologia APA, OPS, OCS, OCC, logrando un porcentaje de cumplimiento de pago en los tiempos establecidos de 77%. lo anterior teniendo en cuenta que (OPS - APA= 5 dias) 462 cuentas lograron el indicador de pago dentro de los 5 dias y (OCS - OCC= 8 dias) 112 cuentas se pagaron dentro del indicador de 8 dias cumpliendo lo establecido. TRIMESTRE III: Para este trimestre se evidencia que se pagaron un total de 789 cuentas de tipologia APA, OPS, OCS, OCC, logrando un porcentaje de cumplimiento de pago en los tiempos establecidos de 84%. lo anterior teniendo en cuenta que (OPS - APA= 5 dias) 487 cuentas lograron el indicador de pago dentro de los 5 dias y (OCS - OCC= 8 dias) 177 cuentas se pagaron dentro del indicador de 8 dias cumpliendo lo establecido.
J34: ACCIÓN FORMULADA
J35: TRIMESTRE I: se recomienda que para proximas actualizaciones en la plataforma se logre un adecuado acoplamiento con la informacion suministrada en Integradoc ya que estaba mostrando cuentas que ya se habian tramitado para el pago. De igual manera cuentas que ya se habian dado por cerradas, continuaban evidenciandose en la herramienta integradoc. TRIMESTRE II: Se recomienda tener en cuenta para futuras calculo del indicador: * Analisis de datos de actividades por oficina y simplificar actividades * Analisis de la ejecucion de la actividad dentro de la cuenta para pago desde su radicacion hasta el giro efectivo. * Revision de la Circular 007 de 2017 los tiempos establecidos para el pago de cuentas para contratistas y proveedores. OPS - APA= 5 dias OCS - OCC= 8 dias TRIMESTRE III: Se solicita a los administradores de los Sistemas como herramienta Integradoc y suministro de internet el mejoramiento de la prestacion del servicio ya que esto causa duplicidad de información en diferentes identificadores en la herramienta integradoc, lo cual genera tiempos para el proceso financiero, disminuyendo su capacidad de atencion a las solicitudes represadas por la intermitencia del servicio para la atencion oportuna de los siguientes pagos. OPS - APA= 5 dias OCS - OCC= 8 dias
J41: RESPONSABLE
J42: =E14 -> Director(a) Financiera
C45: PERIODO DE EVALUACIÓN
C46: MES | D46: =IF(J23="MENSUAL","ENERO",IF(J23="TRIMESTRAL","MARZO",IF(J23="SEMESTRAL","JUNIO",IF(J23="ANUAL",YEAR(TODAY()),"")))) -> MARZO | E46: =IF(J23="MENSUAL","FEBRERO",IF(J23="TRIMESTRAL","JUNIO",IF(J23="SEMESTRAL","DICIEMBRE",""))) -> JUNIO | F46: =IF(J23="MENSUAL","MARZO",IF(J23="TRIMESTRAL","SEPTIEMBRE","")) -> SEPTIEMBRE | G46: =IF(J23="MENSUAL","ABRIL",IF(J23="TRIMESTRAL","DICIEMBRE","")) -> DICIEMBRE | H46: =IF(J23="MENSUAL","MAYO","") ->  | I46: =IF(J23="MENSUAL","JUNIO","") ->  | J46: =IF(J23="MENSUAL","JULIO","") ->  | K46: =IF(J23="MENSUAL","AGOSTO","") ->  | L46: =IF(J23="MENSUAL","SEPTIEMBRE","") ->  | M46: =IF(J23="MENSUAL","OCTUBRE","") ->  | N46: =IF(J23="MENSUAL","NOVIEMBRE","") ->  | O46: =IF(J23="MENSUAL","DICIEMBRE","") -> 
C47: =G18 -> Número de cuentas (APA - OPS -OCS -OCC) pagadas dentro de los 5 días hábiles * 100 | D47: 115 | E47: 574 | F47: =195+292+177 -> 664
C48: =G19 -> Total de cuentas pagadas en el periodo | D48: 119 | E48: 746 | F48: 789
C49: VALOR | D49: =IFERROR(IF($E$17=1,D47/D48,IF($E$17=2,D47,"")),"") -> 0.9663865546 | E49: =IFERROR(IF($E$17=1,E47/E48,IF($E$17=2,E47,"")),"") -> 0.7694369973 | F49: 0.8415716096
C50: META PONDERADA | D50: =IF(AND(N23="ANUAL",J23="MENSUAL"),N17/12,IF(AND(N23="ANUAL",J23="TRIMESTRAL"),N17/4,IF(AND(N23="ANUAL",J23="SEMESTRAL"),N17/2,IF(AND(N23="ANUAL",J23="ANUAL"),N17,IF(AND(N23="SEMESTRAL",J23="MENSUAL"),N17/6,IF(AND(N23="SEMESTRAL",J23="TRIMESTRAL"),N17/2,IF(AND(N23="SEMESTRAL",J23="SEMESTRAL"),N17,IF(AND(N23="SEMESTRAL",J23="ANUAL"),"REVISAR FRECUENCIAS",IF(AND(N23="TRIMESTRAL",J23="MENSUAL"),N17/3,IF(AND(N23="TRIMESTRAL",J23="TRIMESTRAL"),N17,IF(AND(N23="TRIMESTRAL",J23="SEMESTRAL"),"REVISAR FRECUENCIAS",IF(AND(N23="TRIMESTRAL",J23="ANUAL"),"REVISAR FRECUENCIAS",IF(AND(N23="MENSUAL",J23="MENSUAL"),N17,IF(AND(N23="MENSUAL",J23="TRIMESTRAL"),"REVISAR FRECUENCIAS",IF(AND(N23="MENSUAL",J23="SEMESTRAL"),"REVISAR FRECUENCIAS",IF(AND(N23="MENSUAL",J23="ANUAL"),"REVISAR FRECUENCIAS","")))))))))))))))) -> 0.95 | E50: =IF(AND(N23="ANUAL",J23="MENSUAL"),N17/12+D50,IF(AND(N23="ANUAL",J23="TRIMESTRAL"),N17/4+D50,IF(AND(N23="ANUAL",J23="SEMESTRAL"),N17/2+D50,IF(AND(N23="SEMESTRAL",J23="MENSUAL"),N17/6+D50,IF(AND(N23="SEMESTRAL",J23="TRIMESTRAL"),N17/2+D50,IF(AND(N23="SEMESTRAL",J23="SEMESTRAL"),N17,IF(AND(N23="TRIMESTRAL",J23="MENSUAL"),N17/3+D50,IF(AND(N23="TRIMESTRAL",J23="TRIMESTRAL"),N17,IF(AND(N23="MENSUAL",J23="MENSUAL"),N17,""))))))))) -> 0.95 | F50: =IF(AND(N23="ANUAL",J23="MENSUAL"),N17/12+E50,IF(AND(N23="ANUAL",J23="TRIMESTRAL"),N17/4+E50,IF(AND(N23="SEMESTRAL",J23="MENSUAL"),N17/6+E50,IF(AND(N23="SEMESTRAL",J23="TRIMESTRAL"),N17/2,IF(AND(N23="TRIMESTRAL",J23="MENSUAL"),N17/3+E50,IF(AND(N23="TRIMESTRAL",J23="TRIMESTRAL"),N17,IF(AND(N23="MENSUAL",J23="MENSUAL"),N17,""))))))) -> 0.95 | G50: =IF(AND(N23="ANUAL",J23="MENSUAL"),N17/12+F50,IF(AND(N23="ANUAL",J23="TRIMESTRAL"),N17/4+F50,IF(AND(N23="SEMESTRAL",J23="MENSUAL"),N17/6+F50,IF(AND(N23="SEMESTRAL",J23="TRIMESTRAL"),N17/2+F50,IF(AND(N23="TRIMESTRAL",J23="MENSUAL"),N17/3,IF(AND(N23="TRIMESTRAL",J23="TRIMESTRAL"),N17,IF(AND(N23="MENSUAL",J23="MENSUAL"),N17,""))))))) -> 0.95 | H50: =IF(AND($N$23="ANUAL",$J$23="MENSUAL"),$N$17/12+G50,IF(AND(N23="SEMESTRAL",J23="MENSUAL"),N17/6+G50,IF(AND(N23="TRIMESTRAL",J23="MENSUAL"),N17/3+G50,IF(AND(N23="MENSUAL",J23="MENSUAL"),N17,"")))) ->  | I50: =IF(AND($N$23="ANUAL",$J$23="MENSUAL"),$N$17/12+H50,IF(AND(N23="SEMESTRAL",J23="MENSUAL"),N17/6+H50,IF(AND(N23="TRIMESTRAL",J23="MENSUAL"),N17/3+H50,IF(AND(N23="MENSUAL",J23="MENSUAL"),N17,"")))) ->  | J50: =IF(AND($N$23="ANUAL",$J$23="MENSUAL"),$N$17/12+I50,IF(AND(N23="SEMESTRAL",J23="MENSUAL"),N17/6,IF(AND(N23="TRIMESTRAL",J23="MENSUAL"),N17/3,IF(AND(N23="MENSUAL",J23="MENSUAL"),N17,"")))) ->  | K50: =IF(AND($N$23="ANUAL",$J$23="MENSUAL"),$N$17/12+J50,IF(AND(N23="SEMESTRAL",J23="MENSUAL"),N17/6+J50,IF(AND(N23="TRIMESTRAL",J23="MENSUAL"),N17/3+J50,IF(AND(N23="MENSUAL",J23="MENSUAL"),N17,"")))) ->  | L50: =IF(AND($N$23="ANUAL",$J$23="MENSUAL"),$N$17/12+K50,IF(AND(N23="SEMESTRAL",J23="MENSUAL"),N17/6+K50,IF(AND(N23="TRIMESTRAL",J23="MENSUAL"),N17/3+K50,IF(AND(N23="MENSUAL",J23="MENSUAL"),N17,"")))) ->  | M50: =IF(AND($N$23="ANUAL",$J$23="MENSUAL"),$N$17/12+L50,IF(AND(N23="SEMESTRAL",J23="MENSUAL"),N17/6+L50,IF(AND(N23="TRIMESTRAL",J23="MENSUAL"),N17/3,IF(AND(N23="MENSUAL",J23="MENSUAL"),N17,"")))) ->  | N50: =IF(AND($N$23="ANUAL",$J$23="MENSUAL"),$N$17/12+M50,IF(AND(N23="SEMESTRAL",J23="MENSUAL"),N17/6+M50,IF(AND(N23="TRIMESTRAL",J23="MENSUAL"),N17/3+M50,IF(AND(N23="MENSUAL",J23="MENSUAL"),N17,"")))) ->  | O50: =IF(AND($N$23="ANUAL",$J$23="MENSUAL"),$N$17/12+N50,IF(AND(N23="SEMESTRAL",J23="MENSUAL"),N17/6+N50,IF(AND(N23="TRIMESTRAL",J23="MENSUAL"),N17/3+N50,IF(AND(N23="MENSUAL",J23="MENSUAL"),N17,"")))) -> 
C52: NIVEL DE SEGREGACIÓN *
C53: UNIDAD SEGREGADA (Ej. Facultad, Programa Académico, Área) | G53: RESULTADO | K53: ANALISIS DE DATOS SEGREGADO
C54: OPS - APA= 5 dias | G54: 0.91 | K54: Se evidencia que el volumen de cuentas para pago para el III trimestre aumento, el resultado obtenido para el pago corresponde a 195 OPS y 292 APA para un total de 487 cuentas pagadas, de los cuales no cumplimos con el tiempo de pago: 44 ENTRE 18 APA Y 26 OPS. En este proceso se tuvo intermitencia del sistema de Integradoc e internet en el mes de agosto.
C55: OCS - OCC= 8 dias | G55: 0.98 | K55: 177 TOTAL DE LOS CUALES 79 CORRESPONDEN A OCS Y 2 A OCC
C62: Diagonal 18 No. 20-29 Fusagasugá – Cundinamarca Teléfono (601) 8281483 Línea Gratuita 018000180414 www.ucundinamarca.edu.co E-mail: info@ucundinamarca.edu.co NIT: 890.680.062-2
C63: Documento controlado por el Sistema de Gestión de la Calidad Asegúrese que corresponde a la última versión consultando el Portal Institucional
G72: Estratégico | J72: Eficacia
G73: Misional | J73: Eficiencia
G74: Apoyo | J74: Acreditación
G75: Seguimiento, Medición, Análisis y Evaluación | J75: Positiva
G76: Direccionamiento Estratégico | J76: Negativa
G77: Planeación Institucional | J77: Por Unidad Regional
G78: Proyectos Especiales y Relaciones Interinstitucionales | J78: Por Facultad
G79: Sistemas Integrados | J79: Por Programa Académico
G80: Autoevaluación y Acreditación | J80: Por área
G81: Comunicaciones | J81: Por Laboratorio
G82: Formación y Aprendizaje | J82: Otros
G83: Ciencia, Tecnología e Innovación | J83: No Aplica
G84: Interacción Social Universitaria
G85: Bienestar Universitario
G86: Admisiones y Registro
G87: Graduados
G88: Dialogando con el Mundo
G89: Talento Humano
G90: Jurídica
G91: Financiera
G92: Sistemas y Tecnología
G93: Bienes y Servicios
G94: Documental
G95: Apoyo Académico
G96: Control Interno
G97: Control Disciplinario
G98: Servicio de Atención al Ciudadano

Sheet AFI-2
B2: REGRESAR
E5: MACROPROCESO ESTRATÉGICO | M5: CÓDIGO: ESGr027
E6: PROCESO GESTIÓN SISTEMAS INTEGRADOS - CALIDAD | M6: VERSIÓN: 8
E7: MATRIZ DE MEDICIÓN Y SEGUIMIENTO A LOS PROCESOS DE GESTIÓN | M7: VIGENCIA: 2023-07-28
M8: PÁGINA: 3 de 6
C10: FICHA DE INDICADOR
C12: MACROPROCESO | E12: Apoyo | I12: NOMBRE DEL INDICADOR | K12: Recuperación de cartera
C13: PROCESO GESTIÓN | E13: Financiera
C14: RESPONSABLE DE MEDICIÓN | E14: Director(a) Financiera - Oficina de Apoyo Financiero
C16: 1. COMPORTAMIENTO DE INDICADOR
C17: CLASIFICACIÓN DE LA MEDICIÓN | E17: 1 | H17: TIPO DE INDICADOR | J17: Eficiencia | L17: META | N17: 0.9
C18: FORMULA | E18: NUMERADOR | G18: Valor recuperado en el periodo académico *100 | L18: UNIDAD DE MEDIDA | N18: Porcentaje
E19: DENOMINADOR | G19: Valor prestado por fraccionamiento de matricula durante el periodo académico
C20: TENDENCIA | E20: Positiva | H20: NIVEL DE SEGREGACIÓN * | J20: Otros | L20: ESCALA
L21: Deficiente | M21: Aceptable | N21: Bueno | O21: Excelente
L22: 0% - 70% | M22: 70.1% - 80% | N22: 80.1% - 90% | O22: 90.1% - 100%
C23: ORIGEN DE DATOS NUMERADOR | E23: Documento en Excel | H23: FRECUENCIA DE LA MEDICIÓN | J23: SEMESTRAL | L23: FRECUENCIA DE RESULTADO | N23: SEMESTRAL
C24: ORIGEN DE DATOS DENOMINADOR | E24: Documento en Excel
C26: RESULTADOS
J27: ANÁLISIS DE DATOS
J28: I SEMESTRE I: El primer semestre del 2023 se inicio con una financiacion por valor de $5,523,200 correspondiente a 3 estudiantes posgrados y 1 de presgrado, de los cuales, al cierre de junio se logro recaudar el 100%, de los $5,523,200 - en vigencias anteriores se inicio con una cartera de $2,647,745 - de lo cual se recaudo $346,070 quedando una cartera de vigencias anteriores de $2,301,675
J34: ACCIÓN FORMULADA
J35: I SEMESTRE: En la actualidad se están realizando mesas de trabajo junto con la oficina de jurídica para determinar la estrategia que se seguirá para la recuperación o el castigo de la cartera (costo-beneficio)
J41: RESPONSABLE
J42: =E14 -> Director(a) Financiera - Oficina de Apoyo Financiero
C45: PERIODO DE EVALUACIÓN
C46: MES | D46: =IF(J23="MENSUAL","ENERO",IF(J23="TRIMESTRAL","MARZO",IF(J23="SEMESTRAL","JUNIO",IF(J23="ANUAL",YEAR(TODAY()),"")))) -> JUNIO | E46: =IF(J23="MENSUAL","FEBRERO",IF(J23="TRIMESTRAL","JUNIO",IF(J23="SEMESTRAL","DICIEMBRE",""))) -> DICIEMBRE | F46: =IF(J23="MENSUAL","MARZO",IF(J23="TRIMESTRAL","SEPTIEMBRE","")) ->  | G46: =IF(J23="MENSUAL","ABRIL",IF(J23="TRIMESTRAL","DICIEMBRE","")) ->  | H46: =IF(J23="MENSUAL","MAYO","") ->  | I46: =IF(J23="MENSUAL","JUNIO","") ->  | J46: =IF(J23="MENSUAL","JULIO","") ->  | K46: =IF(J23="MENSUAL","AGOSTO","") ->  | L46: =IF(J23="MENSUAL","SEPTIEMBRE","") ->  | M46: =IF(J23="MENSUAL","OCTUBRE","") ->  | N46: =IF(J23="MENSUAL","NOVIEMBRE","") ->  | O46: =IF(J23="MENSUAL","DICIEMBRE","") -> 
C47: =G18 -> Valor recuperado en el periodo académico *100 | D47: 5869270
C48: =G19 -> Valor prestado por fraccionamiento de matricula durante el periodo académico | D48: 6430699
C49: VALOR | D49: =IFERROR(IF($E$17=1,D47/D48,IF($E$17=2,D47,"")),"") -> 0.9126954939 | E49: =IFERROR(IF($E$17=1,E47/E48,IF($E$17=2,E47,"")),"") -> 
C50: META PONDERADA | D50: =IF(AND(N23="ANUAL",J23="MENSUAL"),N17/12,IF(AND(N23="ANUAL",J23="TRIMESTRAL"),N17/4,IF(AND(N23="ANUAL",J23="SEMESTRAL"),N17/2,IF(AND(N23="ANUAL",J23="ANUAL"),N17,IF(AND(N23="SEMESTRAL",J23="MENSUAL"),N17/6,IF(AND(N23="SEMESTRAL",J23="TRIMESTRAL"),N17/2,IF(AND(N23="SEMESTRAL",J23="SEMESTRAL"),N17,IF(AND(N23="SEMESTRAL",J23="ANUAL"),"REVISAR FRECUENCIAS",IF(AND(N23="TRIMESTRAL",J23="MENSUAL"),N17/3,IF(AND(N23="TRIMESTRAL",J23="TRIMESTRAL"),N17,IF(AND(N23="TRIMESTRAL",J23="SEMESTRAL"),"REVISAR FRECUENCIAS",IF(AND(N23="TRIMESTRAL",J23="ANUAL"),"REVISAR FRECUENCIAS",IF(AND(N23="MENSUAL",J23="MENSUAL"),N17,IF(AND(N23="MENSUAL",J23="TRIMESTRAL"),"REVISAR FRECUENCIAS",IF(AND(N23="MENSUAL",J23="SEMESTRAL"),"REVISAR FRECUENCIAS",IF(AND(N23="MENSUAL",J23="ANUAL"),"REVISAR FRECUENCIAS","")))))))))))))))) -> 0.9 | E50: =IF(AND(N23="ANUAL",J23="MENSUAL"),N17/12+D50,IF(AND(N23="ANUAL",J23="TRIMESTRAL"),N17/4+D50,IF(AND(N23="ANUAL",J23="SEMESTRAL"),N17/2+D50,IF(AND(N23="SEMESTRAL",J23="MENSUAL"),N17/6+D50,IF(AND(N23="SEMESTRAL",J23="TRIMESTRAL"),N17/2+D50,IF(AND(N23="SEMESTRAL",J23="SEMESTRAL"),N17,IF(AND(N23="TRIMESTRAL",J23="MENSUAL"),N17/3+D50,IF(AND(N23="TRIMESTRAL",J23="TRIMESTRAL"),N17,IF(AND(N23="MENSUAL",J23="MENSUAL"),N17,""))))))))) -> 0.9 | F50: =IF(AND(N23="ANUAL",J23="MENSUAL"),N17/12+E50,IF(AND(N23="ANUAL",J23="TRIMESTRAL"),N17/4+E50,IF(AND(N23="SEMESTRAL",J23="MENSUAL"),N17/6+E50,IF(AND(N23="SEMESTRAL",J23="TRIMESTRAL"),N17/2,IF(AND(N23="TRIMESTRAL",J23="MENSUAL"),N17/3+E50,IF(AND(N23="TRIMESTRAL",J23="TRIMESTRAL"),N17,IF(AND(N23="MENSUAL",J23="MENSUAL"),N17,""))))))) ->  | G50: =IF(AND(N23="ANUAL",J23="MENSUAL"),N17/12+F50,IF(AND(N23="ANUAL",J23="TRIMESTRAL"),N17/4+F50,IF(AND(N23="SEMESTRAL",J23="MENSUAL"),N17/6+F50,IF(AND(N23="SEMESTRAL",J23="TRIMESTRAL"),N17/2+F50,IF(AND(N23="TRIMESTRAL",J23="MENSUAL"),N17/3,IF(AND(N23="TRIMESTRAL",J23="TRIMESTRAL"),N17,IF(AND(N23="MENSUAL",J23="MENSUAL"),N17,""))))))) ->  | H50: =IF(AND($N$23="ANUAL",$J$23="MENSUAL"),$N$17/12+G50,IF(AND(N23="SEMESTRAL",J23="MENSUAL"),N17/6+G50,IF(AND(N23="TRIMESTRAL",J23="MENSUAL"),N17/3+G50,IF(AND(N23="MENSUAL",J23="MENSUAL"),N17,"")))) ->  | I50: =IF(AND($N$23="ANUAL",$J$23="MENSUAL"),$N$17/12+H50,IF(AND(N23="SEMESTRAL",J23="MENSUAL"),N17/6+H50,IF(AND(N23="TRIMESTRAL",J23="MENSUAL"),N17/3+H50,IF(AND(N23="MENSUAL",J23="MENSUAL"),N17,"")))) ->  | J50: =IF(AND($N$23="ANUAL",$J$23="MENSUAL"),$N$17/12+I50,IF(AND(N23="SEMESTRAL",J23="MENSUAL"),N17/6,IF(AND(N23="TRIMESTRAL",J23="MENSUAL"),N17/3,IF(AND(N23="MENSUAL",J23="MENSUAL"),N17,"")))) ->  | K50: =IF(AND($N$23="ANUAL",$J$23="MENSUAL"),$N$17/12+J50,IF(AND(N23="SEMESTRAL",J23="MENSUAL"),N17/6+J50,IF(AND(N23="TRIMESTRAL",J23="MENSUAL"),N17/3+J50,IF(AND(N23="MENSUAL",J23="MENSUAL"),N17,"")))) ->  | L50: =IF(AND($N$23="ANUAL",$J$23="MENSUAL"),$N$17/12+K50,IF(AND(N23="SEMESTRAL",J23="MENSUAL"),N17/6+K50,IF(AND(N23="TRIMESTRAL",J23="MENSUAL"),N17/3+K50,IF(AND(N23="MENSUAL",J23="MENSUAL"),N17,"")))) ->  | M50: =IF(AND($N$23="ANUAL",$J$23="MENSUAL"),$N$17/12+L50,IF(AND(N23="SEMESTRAL",J23="MENSUAL"),N17/6+L50,IF(AND(N23="TRIMESTRAL",J23="MENSUAL"),N17/3,IF(AND(N23="MENSUAL",J23="MENSUAL"),N17,"")))) ->  | N50: =IF(AND($N$23="ANUAL",$J$23="MENSUAL"),$N$17/12+M50,IF(AND(N23="SEMESTRAL",J23="MENSUAL"),N17/6+M50,IF(AND(N23="TRIMESTRAL",J23="MENSUAL"),N17/3+M50,IF(AND(N23="MENSUAL",J23="MENSUAL"),N17,"")))) ->  | O50: =IF(AND($N$23="ANUAL",$J$23="MENSUAL"),$N$17/12+N50,IF(AND(N23="SEMESTRAL",J23="MENSUAL"),N17/6+N50,IF(AND(N23="TRIMESTRAL",J23="MENSUAL"),N17/3+N50,IF(AND(N23="MENSUAL",J23="MENSUAL"),N17,"")))) -> 
C52: NIVEL DE SEGREGACIÓN *
C53: UNIDAD SEGREGADA (Ej. Facultad, Programa Académico, Área) | G53: RESULTADO | K53: ANALISIS DE DATOS SEGREGADO
C54: Total de cartera prestada durante el segundo semestre de la vigencia 2023-1 | G54: 5523200 | K54: Durante el segundo semestre del 2023, se realizó una financiación a estudiantes por un valor de 5,523,200 la cual fue recuperada en un 100% durante el periodo objeto de medición gracias a la gestión de seguimiento realizada desde la oficina de apoyo financiero.
C55: Valor de la cartera pendiente por recupera de la vigencia 2023-1 | G55: 0 | K55: En el periodo objeto de medición se recupero el total financiado.
C56: Total de cartera recuperada de vigencias anteriores al 2022-2 | G56: 346070 | K56: En el periodo objeto de medición se realizó gestión para recuperar la cartera que se encontraba en mora de vigencias anteriores, logrando como resultado la recuperación de un monto equivalente a: 346,070
C57: Valor de la cartera pendiente por recuperar de vigencias anteriores y que se encuentra en el proceso Jurídico | G57: =684675+222824 -> 907499 | K57: Que al cierre de junio el total de la cartera de fraccionamiento de vigencias anteriores corresponde a 905,945 delos cuales la oficina de Juridica , le fue entregado lo correspondiente a 684, 675 del estudiante TORO SERNA YEISON ANDRES para el respectivo proceso de cobro juridico , y una cartera correspondiente al 2022-2 por valor de 1,617,000; elc cual se pasara a la oficina de juridica, para el respectivo cobro.
C62: Diagonal 18 No. 20-29 Fusagasugá – Cundinamarca Teléfono (601) 8281483 Línea Gratuita 018000180414 www.ucundinamarca.edu.co E-mail: info@ucundinamarca.edu.co NIT: 890.680.062-2
C63: Documento controlado por el Sistema de Gestión de la Calidad Asegúrese que corresponde a la última versión consultando el Portal Institucional
G72: Estratégico | J72: Eficacia
G73: Misional | J73: Eficiencia
G74: Apoyo | J74: Acreditación
G75: Seguimiento, Medición, Análisis y Evaluación | J75: Positiva
G76: Direccionamiento Estratégico | J76: Negativa
G77: Planeación Institucional | J77: Por Unidad Regional
G78: Proyectos Especiales y Relaciones Interinstitucionales | J78: Por Facultad
G79: Sistemas Integrados | J79: Por Programa Académico
G80: Autoevaluación y Acreditación | J80: Por área
G81: Comunicaciones | J81: Por Laboratorio
G82: Formación y Aprendizaje | J82: Otros
G83: Ciencia, Tecnología e Innovación | J83: No Aplica
G84: Interacción Social Universitaria
G85: Bienestar Universitario
G86: Admisiones y Registro
G87: Graduados
G88: Dialogando con el Mundo
G89: Talento Humano
G90: Jurídica
G91: Financiera
G92: Sistemas y Tecnología
G93: Bienes y Servicios
G94: Documental
G95: Apoyo Académico
G96: Control Interno
G97: Control Disciplinario
G98: Servicio de Atención al Ciudadano

Sheet AFI-3
B2: REGRESAR
E5: MACROPROCESO ESTRATÉGICO | M5: CÓDIGO: ESGr027
E6: PROCESO GESTIÓN SISTEMAS INTEGRADOS - CALIDAD | M6: VERSIÓN: 8
E7: MATRIZ DE MEDICIÓN Y SEGUIMIENTO A LOS PROCESOS DE GESTIÓN | M7: VIGENCIA: 2023-07-28
M8: PÁGINA: 4 de 6
C10: FICHA DE INDICADOR
C12: MACROPROCESO | E12: Apoyo | I12: NOMBRE DEL INDICADOR | K12: Recuperación del IVA
C13: PROCESO GESTIÓN | E13: Financiera
C14: RESPONSABLE DE MEDICIÓN | E14: Director(a) Financiera - Oficina de Contabilidad
C16: 1. COMPORTAMIENTO DE INDICADOR
C17: CLASIFICACIÓN DE LA MEDICIÓN | E17: 1 | H17: TIPO DE INDICADOR | J17: Eficiencia | L17: META | N17: 1
C18: FORMULA | E18: NUMERADOR | G18: Total IVA recuperado | L18: UNIDAD DE MEDIDA | N18: Porcentaje
E19: DENOMINADOR | G19: Total IVA cobrado*100
C20: TENDENCIA | E20: Positiva | H20: NIVEL DE SEGREGACIÓN * | J20: No Aplica | L20: ESCALA
L21: Deficiente | M21: Aceptable | N21: Bueno | O21: Excelente
L22: 0% - 80% | M22: 80.1% - 90% | N22: 90.1% - 99% | O22: >99.1%
C23: ORIGEN DE DATOS NUMERADOR | E23: Reporte Integradoc | H23: FRECUENCIA DE LA MEDICIÓN | J23: BIMENSUAL | L23: FRECUENCIA DE RESULTADO | N23: BIMENSUAL
C24: ORIGEN DE DATOS DENOMINADOR | E24: Gestasoft
C26: RESULTADOS
J27: ANÁLISIS DE DATOS
J28: BIMESTRE I: Durante el primer bimestre del año 2023, en el mes de enero la DIAN envió resolución número 6282001 de fecha 19 de enero de 2023 notificando la devolución de $ 445.206.782 correspondientes a el V BIMESTRE de 2022, quedando el 100% recuperado con respecto al valor solicitado. BIMESTRE II: Durante el segundo bimestre del año 2023, en el mes de abril la DIAN envió resolución número 6282012 de fecha 30 de marzo de 2023 notificando la devolución de $ 1.086.477.019 correspondientes al VI BIMESTRE de 2022, quedando el 99,70% recuperado con respecto al valor solicitado, ya que se solicito un valor de $ 1.089.730.883,69. BIMESTRE III: Durante el tercer bimestre del año 2023, en el mes de mayo la DIAN envió resolución de fecha 25 de mayo de 2023 notificando la devolución de $ 366.990.463 correspondiente al I BIMESTRE de 2023, quedando el 100% recuperado con respecto al valor solicitado, ya que se solicito un valor de $ 366.990.463,34. Asi mismo, en el mes de junio la DIAN envió resolución número 6282023 de fecha 23 de junio de 2023, la cual se adjunta, notificando la devolución de $ 916.840.372 correspondiente al II BIMESTRE de 2023, quedando el 100% recuperado con respecto al valor solicitado, ya que se solicito un valor de $ 916.840.372,68; para un total recuperado de $ 1.283.830.835 durante el III Bimestre del 2023. BIMESTRE IV: Durante el cuarto bimestre del año 2023 en los meses de Julio-Agosto no se recibio ninguna resolución de devolución por parte de la DIAN. BIMESTRE V: Durante el quinto bimestre del año 2023, en el mes de octubre la DIAN envió resolución número 6282039 de fecha 02 de octubre de 2023 notificando la devolución de $ 777.499.184 correspondientes al III BIMESTRE de 2023, quedando el 100% recuperado con respecto al valor solicitado, ya que se solicito un valor de $ 777.499.184,51.
J34: ACCIÓN FORMULADA
J41: RESPONSABLE
J42: =E14 -> Director(a) Financiera - Oficina de Contabilidad
C45: PERIODO DE EVALUACIÓN
C46: MES | D46: =IF(J23="MENSUAL","DICIEMBRE",IF(J23="BIMENSUAL","FEBRERO",IF(J23="BIMENSUAL","JUNIO",IF(J23="ANUAL",YEAR(TODAY()),"")))) -> FEBRERO | E46: ABRIL | F46: JUNIO | G46: AGOSTO | H46: OCTUBRE | I46: DICIEMBRE | J46: =IF(J23="MENSUAL","JULIO","") ->  | K46: =IF(J23="MENSUAL","AGOSTO","") ->  | L46: =IF(J23="MENSUAL","SEPTIEMBRE","") ->  | M46: =IF(J23="MENSUAL","OCTUBRE","") ->  | N46: =IF(J23="MENSUAL","NOVIEMBRE","") ->  | O46: =IF(J23="MENSUAL","DICIEMBRE","") -> 
C47: =G18 -> Total IVA recuperado | D47: 445206782 | E47: 1086477019 | F47: 1283830835 | G47: 1 | H47: 777499184
C48: =G19 -> Total IVA cobrado*100 | D48: 445206781.9 | E48: 1089730884 | F48: 1283830836 | G48: 1 | H48: 777499184
C49: VALOR | D49: =IFERROR(IF($E$17=1,D47/D48,IF($E$17=2,D47,"")),"") -> 1 | E49: =IFERROR(IF($E$17=1,E47/E48,IF($E$17=2,E47,"")),"") -> 0.9970140658 | F49: 0.9999999992 | G49: 1 | H49: 1
C50: META PONDERADA | D50: =IF(AND(N23="ANUAL",J23="MENSUAL"),N17/12,IF(AND(N23="ANUAL",J23="TRIMESTRAL"),N17/4,IF(AND(N23="ANUAL",J23="SEMESTRAL"),N17/2,IF(AND(N23="ANUAL",J23="ANUAL"),N17,IF(AND(N23="SEMESTRAL",J23="MENSUAL"),N17/6,IF(AND(N23="SEMESTRAL",J23="TRIMESTRAL"),N17/2,IF(AND(N23="SEMESTRAL",J23="SEMESTRAL"),N17,IF(AND(N23="SEMESTRAL",J23="ANUAL"),"REVISAR FRECUENCIAS",IF(AND(N23="TRIMESTRAL",J23="MENSUAL"),N17/3,IF(AND(N23="TRIMESTRAL",J23="TRIMESTRAL"),N17,IF(AND(N23="TRIMESTRAL",J23="SEMESTRAL"),"REVISAR FRECUENCIAS",IF(AND(N23="TRIMESTRAL",J23="ANUAL"),"REVISAR FRECUENCIAS",IF(AND(N23="MENSUAL",J23="MENSUAL"),N17,IF(AND(N23="MENSUAL",J23="TRIMESTRAL"),"REVISAR FRECUENCIAS",IF(AND(N23="MENSUAL",J23="SEMESTRAL"),"REVISAR FRECUENCIAS",IF(AND(N23="MENSUAL",J23="ANUAL"),"REVISAR FRECUENCIAS","")))))))))))))))) ->  | E50: =IF(AND(N23="ANUAL",J23="MENSUAL"),N17/12+D50,IF(AND(N23="ANUAL",J23="TRIMESTRAL"),N17/4+D50,IF(AND(N23="ANUAL",J23="SEMESTRAL"),N17/2+D50,IF(AND(N23="SEMESTRAL",J23="MENSUAL"),N17/6+D50,IF(AND(N23="SEMESTRAL",J23="TRIMESTRAL"),N17/2+D50,IF(AND(N23="SEMESTRAL",J23="SEMESTRAL"),N17,IF(AND(N23="TRIMESTRAL",J23="MENSUAL"),N17/3+D50,IF(AND(N23="TRIMESTRAL",J23="TRIMESTRAL"),N17,IF(AND(N23="MENSUAL",J23="MENSUAL"),N17,""))))))))) ->  | F50: =IF(AND(N23="ANUAL",J23="MENSUAL"),N17/12+E50,IF(AND(N23="ANUAL",J23="TRIMESTRAL"),N17/4+E50,IF(AND(N23="SEMESTRAL",J23="MENSUAL"),N17/6+E50,IF(AND(N23="SEMESTRAL",J23="TRIMESTRAL"),N17/2,IF(AND(N23="TRIMESTRAL",J23="MENSUAL"),N17/3+E50,IF(AND(N23="TRIMESTRAL",J23="TRIMESTRAL"),N17,IF(AND(N23="MENSUAL",J23="MENSUAL"),N17,""))))))) ->  | G50: =IF(AND(N23="ANUAL",J23="MENSUAL"),N17/12+F50,IF(AND(N23="ANUAL",J23="TRIMESTRAL"),N17/4+F50,IF(AND(N23="SEMESTRAL",J23="MENSUAL"),N17/6+F50,IF(AND(N23="SEMESTRAL",J23="TRIMESTRAL"),N17/2+F50,IF(AND(N23="TRIMESTRAL",J23="MENSUAL"),N17/3,IF(AND(N23="TRIMESTRAL",J23="TRIMESTRAL"),N17,IF(AND(N23="MENSUAL",J23="MENSUAL"),N17,""))))))) ->  | H50: =IF(AND($N$23="ANUAL",$J$23="MENSUAL"),$N$17/12+G50,IF(AND(N23="SEMESTRAL",J23="MENSUAL"),N17/6+G50,IF(AND(N23="TRIMESTRAL",J23="MENSUAL"),N17/3+G50,IF(AND(N23="MENSUAL",J23="MENSUAL"),N17,"")))) ->  | I50: =IF(AND($N$23="ANUAL",$J$23="MENSUAL"),$N$17/12+H50,IF(AND(N23="SEMESTRAL",J23="MENSUAL"),N17/6+H50,IF(AND(N23="TRIMESTRAL",J23="MENSUAL"),N17/3+H50,IF(AND(N23="MENSUAL",J23="MENSUAL"),N17,"")))) ->  | J50: =IF(AND($N$23="ANUAL",$J$23="MENSUAL"),$N$17/12+I50,IF(AND(N23="SEMESTRAL",J23="MENSUAL"),N17/6,IF(AND(N23="TRIMESTRAL",J23="MENSUAL"),N17/3,IF(AND(N23="MENSUAL",J23="MENSUAL"),N17,"")))) ->  | K50: =IF(AND($N$23="ANUAL",$J$23="MENSUAL"),$N$17/12+J50,IF(AND(N23="SEMESTRAL",J23="MENSUAL"),N17/6+J50,IF(AND(N23="TRIMESTRAL",J23="MENSUAL"),N17/3+J50,IF(AND(N23="MENSUAL",J23="MENSUAL"),N17,"")))) ->  | L50: =IF(AND($N$23="ANUAL",$J$23="MENSUAL"),$N$17/12+K50,IF(AND(N23="SEMESTRAL",J23="MENSUAL"),N17/6+K50,IF(AND(N23="TRIMESTRAL",J23="MENSUAL"),N17/3+K50,IF(AND(N23="MENSUAL",J23="MENSUAL"),N17,"")))) ->  | M50: =IF(AND($N$23="ANUAL",$J$23="MENSUAL"),$N$17/12+L50,IF(AND(N23="SEMESTRAL",J23="MENSUAL"),N17/6+L50,IF(AND(N23="TRIMESTRAL",J23="MENSUAL"),N17/3,IF(AND(N23="MENSUAL",J23="MENSUAL"),N17,"")))) ->  | N50: =IF(AND($N$23="ANUAL",$J$23="MENSUAL"),$N$17/12+M50,IF(AND(N23="SEMESTRAL",J23="MENSUAL"),N17/6+M50,IF(AND(N23="TRIMESTRAL",J23="MENSUAL"),N17/3+M50,IF(AND(N23="MENSUAL",J23="MENSUAL"),N17,"")))) ->  | O50: =IF(AND($N$23="ANUAL",$J$23="MENSUAL"),$N$17/12+N50,IF(AND(N23="SEMESTRAL",J23="MENSUAL"),N17/6+N50,IF(AND(N23="TRIMESTRAL",J23="MENSUAL"),N17/3+N50,IF(AND(N23="MENSUAL",J23="MENSUAL"),N17,"")))) -> 
C52: NIVEL DE SEGREGACIÓN *
C53: UNIDAD SEGREGADA (Ej. Facultad, Programa Académico, Área) | G53: RESULTADO | K53: ANALISIS DE DATOS SEGREGADO
C62: Diagonal 18 No. 20-29 Fusagasugá – Cundinamarca Teléfono (601) 8281483 Línea Gratuita 018000180414 www.ucundinamarca.edu.co E-mail: info@ucundinamarca.edu.co NIT: 890.680.062-2
C63: Documento controlado por el Sistema de Gestión de la Calidad Asegúrese que corresponde a la última versión consultando el Portal Institucional
F72: MENSUAL | G72: Estratégico | J72: Eficacia
F73: BIMENSUAL | G73: Misional | J73: Eficiencia
F74: TRIMESTRAL | G74: Apoyo | J74: Acreditación
F75: SEMESTRAL | G75: Seguimiento, Medición, Análisis y Evaluación | J75: Positiva
F76: ANUAL | G76: Direccionamiento Estratégico | J76: Negativa
G77: Planeación Institucional | J77: Por Unidad Regional
G78: Proyectos Especiales y Relaciones Interinstitucionales | J78: Por Facultad
G79: Sistemas Integrados | J79: Por Programa Académico
G80: Autoevaluación y Acreditación | J80: Por área
G81: Comunicaciones | J81: Por Laboratorio
G82: Formación y Aprendizaje | J82: Otros
G83: Ciencia, Tecnología e Innovación | J83: No Aplica
G84: Interacción Social Universitaria
G85: Bienestar Universitario
G86: Admisiones y Registro
G87: Graduados
G88: Dialogando con el Mundo
G89: Talento Humano
G90: Jurídica
G91: Financiera
G92: Sistemas y Tecnología
G93: Bienes y Servicios
G94: Documental
G95: Apoyo Académico
G96: Control Interno
G97: Control Disciplinario
G98: Servicio de Atención al Ciudadano

Sheet AFI-4
B2: REGRESAR
E5: MACROPROCESO ESTRATÉGICO | M5: CÓDIGO: ESGr027
E6: PROCESO GESTIÓN SISTEMAS INTEGRADOS - CALIDAD | M6: VERSIÓN: 8
E7: MATRIZ DE MEDICIÓN Y SEGUIMIENTO A LOS PROCESOS DE GESTIÓN | M7: VIGENCIA: 2023-07-28
M8: PÁGINA: 5 de 6
C10: FICHA DE INDICADOR
C12: MACROPROCESO | E12: Apoyo | I12: NOMBRE DEL INDICADOR | K12: Tasa de cuentas para causación devueltas
C13: PROCESO GESTIÓN | E13: Financiera
C14: RESPONSABLE DE MEDICIÓN | E14: Director(a) Financiera - Oficina de Contabilidad
C16: 1. COMPORTAMIENTO DE INDICADOR
C17: CLASIFICACIÓN DE LA MEDICIÓN | E17: 1 | H17: TIPO DE INDICADOR | J17: Eficacia | L17: META | N17: 0.2
C18: FORMULA | E18: NUMERADOR | G18: Numero de cuentas radicadas devueltas * 100 | L18: UNIDAD DE MEDIDA | N18: Porcentaje
E19: DENOMINADOR | G19: Total de cuentas radicadas para causación
C20: TENDENCIA | E20: Negativa | H20: NIVEL DE SEGREGACIÓN * | J20: Otros | L20: ESCALA
L21: Deficiente | M21: Aceptable | N21: Bueno | O21: Excelente
L22: >24.1 | M22: 24% - 20.1% | N22: 20% - 15-1% | O22: <15%
C23: ORIGEN DE DATOS NUMERADOR | E23: Data Integradoc | H23: FRECUENCIA DE LA MEDICIÓN | J23: TRIMESTRAL | L23: FRECUENCIA DE RESULTADO | N23: TRIMESTRAL
C24: ORIGEN DE DATOS DENOMINADOR | E24: Data Integradoc
C26: RESULTADOS
J27: ANÁLISIS DE DATOS
J28: TRIMESTRE I: Para el mes de enero en el reporte consolidado de cuentas por parte de INTEGRADOC se recibieron 165 cuentas de empleados y proveedores, y solo hubo un 13.2% de cuentas que fueron devueltas, esta devolución se presentó en su mayoría por errores del sistema los contratistas no podían descargar sus informes AFIR 067 Y AFIR068, por lo cual debían realizarlo de forma manual y eso género que algunas cuentas tuvieran reproceso. Para el mes de febrero se revisan las cuentas de las contrataciones del mes de enero 39 cuentas radicadas y el mismo numero de devoluciones lo que da un porcentaje promedio de 50% lo que indica una escala negativa dada principalmente en los errores de diligenciamiento de las cuentas de cobro, falta de documentación y no pago adecuado de la seguridad social. Para el mes de marzo se radicaron 199 cuentas y se devolvieron 138 ya que tuvieron hasta 2 devoluciones por cada una, por este motivo se tuvieron que revisar de nuevo todas las cuentas verificando que vinieran correctamente, esto debido a que por parte de los contratistas y supervisores las cuentas de cobro no vienen con el lleno de los requisitos, y eso género que algunas cuentas tuvieran reproceso. TRIMESTRE II: Para el mes de abril en el reporte consolidado de cuentas por parte de INTEGRADOC se recibieron 326 cuentas y se devolvieron 116 cuentas la cual tuvo un porcentaje de devolución del 35.6 % mostrando así un comportamiento con tendencia negativa. Para el mes de mayo se radicaron 324 cuentas radicadas y se devolvieron 74 cuentas la cual tuvo un porcentaje de devolución del 22 % mostrando para este mes un comportamiento con tendencia positiva respecto al mes anterior. Para el mes de junio se radicaron 427 cuentas y se devolvieron 85 cuentas por lo que se observó un porcentaje de devolución del 20 % mostrando así un comportamiento con tendencia positiva mejorando para este mes el porcentaje del indicador. TRIMESTRE III: Para el mes de JULIO en el reporte consolidado de cuentas por parte de INTEGRADOC se recibieron 281 cuentas y se devolvieron 60 cuentas la cual tuvo un porcentaje de devolución del 21 % mostrando así un comportamiento con tendencia positiva. Para el mes de agosto se radicaron 264 cuentas radicadas y se devolvieron 51 cuentas la cual tuvo un porcentaje de devolución del 19 % mostrando para este mes un comportamiento con tendencia positiva respecto al mes anterior. Para el mes de septiembre se radicaron 297 cuentas y se devolvieron 64 cuentas por lo que se observó un porcentaje de devolución del 22 % mostrando así un comportamiento con tendencia positiva mejorando para este mes el porcentaje del indicador. Durante el tercer trimestre de 2023 se radicaron 667 cuentas y se devolvieron 175 por lo cual con el reproceso se revisaron en total 842 cuentas lo que da un porcentaje promedio de 21% lo que indica una escala positva para el tercer trimestre 2023. Aunque se observa un porcentaje menor de cuentas devueltas en el indicador se realizaran nuevas acciones con el objetivo de realizar menos cantidad de devoluciones evitando reprocesos en las revisiones de estas
J34: ACCIÓN FORMULADA
J35: TRIMESTRE lII; Se reeitera la atencion del requerimiento a la direccion de sistemas y tecnología para analizar la posibilidad de sistematizar los formatos AFIr067 y AFIr068 ya que no se encuentran digitalizados a algunas tipologías de contrato
J41: RESPONSABLE
J42: =E14 -> Director(a) Financiera - Oficina de Contabilidad
C45: PERIODO DE EVALUACIÓN
C46: MES | D46: =IF(J23="MENSUAL","ENERO",IF(J23="TRIMESTRAL","MARZO",IF(J23="SEMESTRAL","JUNIO",IF(J23="ANUAL",YEAR(TODAY()),"")))) -> MARZO | E46: =IF(J23="MENSUAL","FEBRERO",IF(J23="TRIMESTRAL","JUNIO",IF(J23="SEMESTRAL","DICIEMBRE",""))) -> JUNIO | F46: =IF(J23="MENSUAL","MARZO",IF(J23="TRIMESTRAL","SEPTIEMBRE","")) -> SEPTIEMBRE | G46: =IF(J23="MENSUAL","ABRIL",IF(J23="TRIMESTRAL","DICIEMBRE","")) -> DICIEMBRE | H46: =IF(J23="MENSUAL","MAYO","") ->  | I46: =IF(J23="MENSUAL","JUNIO","") ->  | J46: =IF(J23="MENSUAL","JULIO","") ->  | K46: =IF(J23="MENSUAL","AGOSTO","") ->  | L46: =IF(J23="MENSUAL","SEPTIEMBRE","") ->  | M46: =IF(J23="MENSUAL","OCTUBRE","") ->  | N46: =IF(J23="MENSUAL","NOVIEMBRE","") ->  | O46: =IF(J23="MENSUAL","DICIEMBRE","") -> 
C47: =G18 -> Numero de cuentas radicadas devueltas * 100 | D47: 202 | E47: 294 | F47: 175
C48: =G19 -> Total de cuentas radicadas para causación | D48: 605 | E48: 1077 | F48: 842
C49: VALOR | D49: =IFERROR(IF($E$17=1,D47/D48,IF($E$17=2,D47,"")),"") -> 0.3338842975 | E49: =IFERROR(IF($E$17=1,E47/E48,IF($E$17=2,E47,"")),"") -> 0.2729805014 | F49: 0.2078384798
C50: META PONDERADA | D50: =IF(AND(N23="ANUAL",J23="MENSUAL"),N17/12,IF(AND(N23="ANUAL",J23="TRIMESTRAL"),N17/4,IF(AND(N23="ANUAL",J23="SEMESTRAL"),N17/2,IF(AND(N23="ANUAL",J23="ANUAL"),N17,IF(AND(N23="SEMESTRAL",J23="MENSUAL"),N17/6,IF(AND(N23="SEMESTRAL",J23="TRIMESTRAL"),N17/2,IF(AND(N23="SEMESTRAL",J23="SEMESTRAL"),N17,IF(AND(N23="SEMESTRAL",J23="ANUAL"),"REVISAR FRECUENCIAS",IF(AND(N23="TRIMESTRAL",J23="MENSUAL"),N17/3,IF(AND(N23="TRIMESTRAL",J23="TRIMESTRAL"),N17,IF(AND(N23="TRIMESTRAL",J23="SEMESTRAL"),"REVISAR FRECUENCIAS",IF(AND(N23="TRIMESTRAL",J23="ANUAL"),"REVISAR FRECUENCIAS",IF(AND(N23="MENSUAL",J23="MENSUAL"),N17,IF(AND(N23="MENSUAL",J23="TRIMESTRAL"),"REVISAR FRECUENCIAS",IF(AND(N23="MENSUAL",J23="SEMESTRAL"),"REVISAR FRECUENCIAS",IF(AND(N23="MENSUAL",J23="ANUAL"),"REVISAR FRECUENCIAS","")))))))))))))))) -> 0.2 | E50: =IF(AND(N23="ANUAL",J23="MENSUAL"),N17/12+D50,IF(AND(N23="ANUAL",J23="TRIMESTRAL"),N17/4+D50,IF(AND(N23="ANUAL",J23="SEMESTRAL"),N17/2+D50,IF(AND(N23="SEMESTRAL",J23="MENSUAL"),N17/6+D50,IF(AND(N23="SEMESTRAL",J23="TRIMESTRAL"),N17/2+D50,IF(AND(N23="SEMESTRAL",J23="SEMESTRAL"),N17,IF(AND(N23="TRIMESTRAL",J23="MENSUAL"),N17/3+D50,IF(AND(N23="TRIMESTRAL",J23="TRIMESTRAL"),N17,IF(AND(N23="MENSUAL",J23="MENSUAL"),N17,""))))))))) -> 0.2 | F50: =IF(AND(N23="ANUAL",J23="MENSUAL"),N17/12+E50,IF(AND(N23="ANUAL",J23="TRIMESTRAL"),N17/4+E50,IF(AND(N23="SEMESTRAL",J23="MENSUAL"),N17/6+E50,IF(AND(N23="SEMESTRAL",J23="TRIMESTRAL"),N17/2,IF(AND(N23="TRIMESTRAL",J23="MENSUAL"),N17/3+E50,IF(AND(N23="TRIMESTRAL",J23="TRIMESTRAL"),N17,IF(AND(N23="MENSUAL",J23="MENSUAL"),N17,""))))))) -> 0.2 | G50: =IF(AND(N23="ANUAL",J23="MENSUAL"),N17/12+F50,IF(AND(N23="ANUAL",J23="TRIMESTRAL"),N17/4+F50,IF(AND(N23="SEMESTRAL",J23="MENSUAL"),N17/6+F50,IF(AND(N23="SEMESTRAL",J23="TRIMESTRAL"),N17/2+F50,IF(AND(N23="TRIMESTRAL",J23="MENSUAL"),N17/3,IF(AND(N23="TRIMESTRAL",J23="TRIMESTRAL"),N17,IF(AND(N23="MENSUAL",J23="MENSUAL"),N17,""))))))) -> 0.2 | H50: =IF(AND($N$23="ANUAL",$J$23="MENSUAL"),$N$17/12+G50,IF(AND(N23="SEMESTRAL",J23="MENSUAL"),N17/6+G50,IF(AND(N23="TRIMESTRAL",J23="MENSUAL"),N17/3+G50,IF(AND(N23="MENSUAL",J23="MENSUAL"),N17,"")))) ->  | I50: =IF(AND($N$23="ANUAL",$J$23="MENSUAL"),$N$17/12+H50,IF(AND(N23="SEMESTRAL",J23="MENSUAL"),N17/6+H50,IF(AND(N23="TRIMESTRAL",J23="MENSUAL"),N17/3+H50,IF(AND(N23="MENSUAL",J23="MENSUAL"),N17,"")))) ->  | J50: =IF(AND($N$23="ANUAL",$J$23="MENSUAL"),$N$17/12+I50,IF(AND(N23="SEMESTRAL",J23="MENSUAL"),N17/6,IF(AND(N23="TRIMESTRAL",J23="MENSUAL"),N17/3,IF(AND(N23="MENSUAL",J23="MENSUAL"),N17,"")))) ->  | K50: =IF(AND($N$23="ANUAL",$J$23="MENSUAL"),$N$17/12+J50,IF(AND(N23="SEMESTRAL",J23="MENSUAL"),N17/6+J50,IF(AND(N23="TRIMESTRAL",J23="MENSUAL"),N17/3+J50,IF(AND(N23="MENSUAL",J23="MENSUAL"),N17,"")))) ->  | L50: =IF(AND($N$23="ANUAL",$J$23="MENSUAL"),$N$17/12+K50,IF(AND(N23="SEMESTRAL",J23="MENSUAL"),N17/6+K50,IF(AND(N23="TRIMESTRAL",J23="MENSUAL"),N17/3+K50,IF(AND(N23="MENSUAL",J23="MENSUAL"),N17,"")))) ->  | M50: =IF(AND($N$23="ANUAL",$J$23="MENSUAL"),$N$17/12+L50,IF(AND(N23="SEMESTRAL",J23="MENSUAL"),N17/6+L50,IF(AND(N23="TRIMESTRAL",J23="MENSUAL"),N17/3,IF(AND(N23="MENSUAL",J23="MENSUAL"),N17,"")))) ->  | N50: =IF(AND($N$23="ANUAL",$J$23="MENSUAL"),$N$17/12+M50,IF(AND(N23="SEMESTRAL",J23="MENSUAL"),N17/6+M50,IF(AND(N23="TRIMESTRAL",J23="MENSUAL"),N17/3+M50,IF(AND(N23="MENSUAL",J23="MENSUAL"),N17,"")))) ->  | O50: =IF(AND($N$23="ANUAL",$J$23="MENSUAL"),$N$17/12+N50,IF(AND(N23="SEMESTRAL",J23="MENSUAL"),N17/6+N50,IF(AND(N23="TRIMESTRAL",J23="MENSUAL"),N17/3+N50,IF(AND(N23="MENSUAL",J23="MENSUAL"),N17,"")))) -> 
C52: NIVEL DE SEGREGACIÓN *
C53: UNIDAD SEGREGADA (Ej. Facultad, Programa Académico, Área) | G53: RESULTADO | K53: ANALISIS DE DATOS SEGREGADO
C54: APA | G54: 0.18 | K54: Se evidencia que para los anexos aun los supervisores no realiza adecuada revision de las cuentas de cobro de sus contratistas, en relacion al pago de seguridad social y la radicacion de los demas documentos con el lleno de requisitos. Son 316 Radicadas / 69 devueltas, lo cual implica un revisión en reproceso exactamente de 385 cuentas, por lo cual, el resultado del indicador segregado en esta tipología es de: 69/385= 18%
C55: OPS | G55: 0.38 | K55: Se evidencia que para las OPS los formatos se encuentran por el sistema y por este motivo estas cuentas llegan con menos errores. mas sin embargo la radicacion de las cuentas de cobro no esta cumpliendo el lleno de los requisitos. Son 36 Radicadas / 22 devueltas, lo cual implica un revisión en reproceso exactamente de 58 cuentas, por lo cual, el resultado del indicador segregado en esta tipología es de: 22/58=38%
C56: OCS | G56: 0.2 | K56: Se evidencia que para las cuentas OCS aún no se encuentra por el sistema los formatos por este motivo los supervisores lo realizan de forma manual y se generan errores y reproceso en la oficina de contabilidad. Son 227 Radicadas / 58 devueltas, lo cual implica una revisión en reproceso exactamente de 285 cuentas, por lo cual, el resultado del indicador segregado en esta tipología es de: 58/285= 20%
C57: OCC | G57: 0.23 | K57: Se evidencia que para las cuentas OCC aún no se encuentra por el sistema los formatos por este motivo los supervisores lo realizan de forma manual y se generan errores y reproceso en la oficina de contabilidad. Son 88 Radicadas / 26 devueltas, lo cual implica una revisión en reproceso exactamente de 114 cuentas, por lo cual, el resultado del indicador segregado en esta tipología es de: 26/114= 23%
C62: Diagonal 18 No. 20-29 Fusagasugá – Cundinamarca Teléfono (601) 8281483 Línea Gratuita 018000180414 www.ucundinamarca.edu.co E-mail: info@ucundinamarca.edu.co NIT: 890.680.062-2
C63: Documento controlado por el Sistema de Gestión de la Calidad Asegúrese que corresponde a la última versión consultando el Portal Institucional
G72: Estratégico | J72: Eficacia
G73: Misional | J73: Eficiencia
G74: Apoyo | J74: Acreditación
G75: Seguimiento, Medición, Análisis y Evaluación | J75: Positiva
G76: Direccionamiento Estratégico | J76: Negativa
G77: Planeación Institucional | J77: Por Unidad Regional
G78: Proyectos Especiales y Relaciones Interinstitucionales | J78: Por Facultad
G79: Sistemas Integrados | J79: Por Programa Académico
G80: Autoevaluación y Acreditación | J80: Por área
G81: Comunicaciones | J81: Por Laboratorio
G82: Formación y Aprendizaje | J82: Otros
G83: Ciencia, Tecnología e Innovación | J83: No Aplica
G84: Interacción Social Universitaria
G85: Bienestar Universitario
G86: Admisiones y Registro
G87: Graduados
G88: Dialogando con el Mundo
G89: Talento Humano
G90: Jurídica
G91: Financiera
G92: Sistemas y Tecnología
G93: Bienes y Servicios
G94: Documental
G95: Apoyo Académico
G96: Control Interno
G97: Control Disciplinario
G98: Servicio de Atención al Ciudadano

Sheet ACTUALIZACIONES
C2: MACROPROCESO ESTRATÉGICO | E2: CÓDIGO: ESGr027
C3: PROCESO GESTIÓN SISTEMAS INTEGRADOS - CALIDAD | E3: VERSIÓN: 8
C4: MATRIZ DE MEDICIÓN Y SEGUIMIENTO A LOS PROCESOS DE GESTIÓN | E4: VIGENCIA: 2023-07-28
E5: PÁGINA: 6 de 6
B7: CONTROL DE ACTUALIZACIONES
B8: FECHA | C8: DESCRIPCIÓN DE LA ACTUALIZACIÓN | D8: RESPONSABLE | E8: CARGO
B9: 2019-01-15 | C9: Se crean los indicadores de gestión para la dirección financiera que miden la gestión administrativa así: AFI-1 (Oportunidad en pagos OPS - APA), AFI-2(Recuperación de cartera de fraccionamiento de matricula) AFI-3 (Recuperación del IVA) AFI-4 (Tasa de cuentas para causación devueltas) | D9: Adriana del Carmen Morales Funez | E9: Directora Financiera
B10: 2021-04 | C10: Se realizo segregación en el indicador AFI-2 por fraccionamiento semestral y cartera que se encuentra en proceso jurídico. | D10: Jose del Carmen Correa Alfonso | E10: Director Financiero
B11: 2023-06-16 | C11: Se amplia el alcance al indicador AFI-1, OPORTUNIDAD EN PAGOS, para incluir en el analicis y medición, las cuentas tipificadas como OCS y OCC, en el modelamiento de pago a terceros (INTEGRADOC) Se realiza ajuste la meta del indicador AFI-3 RECUPERACIÓN DE IVA, con aumento al 100%, ya que estos recursos se proyectan para ser apropiados en los recursos asignados para proyectos de inversión institucionales. | D11: Catherine Ninoska Guevara Garzón | E11: Directora Financiera
B26: Diagonal 18 No. 20-29 Fusagasugá – Cundinamarca Teléfono (601) 8281483 Línea Gratuita 018000180414 www.ucundinamarca.edu.co E-mail: info@ucundinamarca.edu.co NIT: 890.680.062-2
B29: Documento controlado por el Sistema de Gestión de la Calidad Asegúrese que corresponde a la última versión consultando el Portal Institucional

Sheet ITEM (hidden)
A1: MENSUAL | C1: NÚMERO
A2: TRIMESTRAL | C2: PORCENTAJE
A3: SEMESTRAL
A4: ANUAL
